bitfinex/quotes_ETHUSD_20220215
["timestamp","ask_amount","ask_price","bid_price","bid_amount"]
[1644942161024,0.79816067,3126.0,3125.7,0.06815072]
[1644942161228,0.80048296,3126.0,3125.7,0.06815072]
[1644942162024,0.80048296,3126.0,3125.8,0.06815072]
[1644942162226,0.79816067,3126.0,3125.9,0.06815072]
[1644942162528,0.79816067,3126.0,3125.7,0.06815072]
[1644942162529,0.00232229,3126.0,3125.7,0.06815072]
[1644942163324,1.35080545,3126.1,3125.7,0.06815072]
[1644942163526,0.79978,3126.0,3125.7,0.06815072]
[1644942163727,1.35080545,3125.9,3125.7,0.06815072]
[1644942164124,1.35080545,3125.9,3125.8,0.06815072]
[1644942164324,1.35080545,3125.9,3125.5,0.06815072]
[1644942164574,2.15060545,3125.9,3125.5,0.06815072]
[1644942164775,0.7998,3125.9,3125.5,0.06815072]
[1644942165785,1.13536124,3125.7,3125.5,0.06815072]
[1644942165975,1.93518124,3125.7,3125.5,0.06815072]
[1644942169832,4.70235422,3125.6,3125.5,0.06815072]
[1644942170031,5.08635422,3125.6,3125.4,0.00470093]
[1644942170232,5.98101325,3125.5,3125.4,0.00470093]
[1644942170431,7.46508325,3125.5,3125.2,0.13278593]
[1644942170733,1.350718,3125.4,3125.3,0.06816862]
[1644942170935,1.350718,3125.4,3125.3,0.00470093]
[1644942170936,5.57043758,3125.4,3125.3,0.00470093]
[1644942171134,5.87043758,3125.4,3125.3,0.00470093]
[1644942171332,6.87043758,3125.4,3125.3,0.00470093]
[1644942171971,8.47063758,3125.4,3125.3,0.00470093]
[1644942172168,6.87043758,3125.4,3125.3,0.00470093]
[1644942172570,2.400299,3125.3,3125.0,0.00180113]
[1644942172771,6.81814107,3125.2,3125.0,0.00180113]
[1644942172970,4.96484843,3125.1,3124.6,0.06817356]
[1644942173172,1.350718,3125.0,3124.6,0.06817356]
[1644942173771,1.75837955,3124.9,3124.4,0.06817356]
[1644942173970,2.3826655,3124.9,3124.4,0.06817356]
[1644942174470,5.76797319,3124.9,3124.5,0.07067176]
[1644942174672,7.36825319,3124.9,3124.6,0.06817356]
[1644942174870,7.36825319,3124.9,3124.7,0.06817356]
[1644942175070,3.36359111,3124.8,3124.5,0.0024982]
[1644942175475,1.05887013,3124.4,3124.2,0.06817502]
[1644942176726,1.05887013,3124.4,3124.2,0.67306918]
[1644942176930,1.05887013,3124.4,3124.3,0.06817502]
[1644942177128,0.80014,3124.5,3124.3,0.06817502]
[1644942177728,3.1266,3124.9,3124.3,0.06817502]
[1644942177928,3.1266,3124.9,3124.4,0.06817502]
[1644942178126,4.85858314,3125.0,3124.5,0.06817502]
[1644942178326,1.41831766,3125.0,3124.6,0.06817502]
[1644942178527,1.41831766,3125.0,3124.7,0.06817502]
[1644942178730,1.60018,3124.8,3124.2,0.60751686]
[1644942178928,1.60018,3124.8,3124.3,0.06817163]
[1644942179127,1.60018,3124.8,3124.4,0.06817163]
[1644942179328,1.60018,3124.8,3124.7,0.00248972]
[1644942179771,1.60018,3124.8,3124.7,0.07066135]
[1644942179974,0.80005,3124.9,3124.7,0.07066135]
[1644942180175,1.600116,3124.9,3124.8,0.06817163]
[1644942180372,0.80005,3124.9,3124.6,0.00248977]
[1644942181381,1.6001087,3124.9,3124.2,1.47315579]
[1644942181574,0.80005,3124.9,3124.3,0.06817163]
[1644942181874,4.21495024,3124.9,3124.6,0.00248977]
[1644942182077,0.80005,3124.9,3124.6,0.00248977]
[1644942182273,3.37195755,3124.8,3124.6,0.00248977]
[1644942182673,3.37195755,3124.8,3124.4,0.06817163]
[1644942182874,1.6002443,3124.8,3124.5,0.07051409]
[1644942183073,1.6002443,3124.8,3124.6,0.06817163]
[1644942183319,1.6002443,3124.8,3124.5,0.00234246]
[1644942183521,0.8001043,3124.8,3124.5,0.00234246]
[1644942183720,0.8001043,3124.8,3124.4,0.06817163]
[1644942183925,1.6002343,3124.8,3124.4,0.06817163]
[1644942184223,1.6002343,3124.8,3124.5,0.07051412]
[1644942184423,1.6002343,3124.8,3124.6,0.06817163]
[1644942184623,1.6002343,3124.8,3124.5,0.00234249]
[1644942184822,1.6002343,3124.8,3124.2,0.67306579]
[1644942184823,1.6002343,3124.8,3124.3,0.02051412]
[1644942185023,0.800124,3124.7,3124.2,0.60489416]
[1644942185224,0.800124,3124.7,3124.5,0.00234249]
[1644942186226,0.80012,3124.6,3124.1,0.1413704]
[1644942186430,1.0099331,3124.4,3124.1,0.1413704]
[1644942187674,5.23676106,3124.4,3124.1,0.1413704]
[1644942187873,1.8101031,3124.4,3124.1,0.1413704]
[1644942188079,1.8101031,3124.4,3124.2,0.00465603]
[1644942189274,0.8002225,3124.3,3124.2,0.00465603]
[1644942193224,4.19967644,3124.3,3124.2,0.00465603]
[1644942193624,0.8002225,3124.3,3124.2,0.00465603]
[1644942194024,2.75628527,3124.4,3124.2,0.00465603]
[1644942195283,0.8002225,3124.3,3124.2,0.00465603]
[1644942195486,22.92717264,3124.3,3124.2,0.00465603]
[1644942195684,22.92717264,3124.3,3124.1,0.0158556]
[1644942195685,19.52043,3124.2,3124.1,0.0158556]
[1644942195886,19.90443,3124.2,3124.1,0.0132404]
[1644942196084,21.20443,3124.2,3124.1,0.01585563]
[1644942196286,18.72,3124.0,3123.6,0.01046251]
[1644942196489,19.104,3123.9,3123.6,0.01046251]
[1644942196691,20.76493792,3123.9,3123.6,0.01046251]
[1644942196894,19.52053,3123.7,3123.6,0.01046251]
[1644942197088,18.72,3123.6,3123.0,0.01648606]
[1644942197286,18.72,3123.5,3123.0,0.01648606]
[1644942197487,0.8005454,3123.5,3123.0,0.01648606]
[1644942197688,0.88080707,3123.4,3123.0,0.01648606]
[1644942198087,1.68135707,3123.4,3123.0,0.01648606]
[1644942198725,5.21915707,3123.4,3123.0,0.01648606]
[1644942198926,6.01968557,3123.4,3123.0,0.01648606]
[1644942199325,0.80054,3123.3,3123.0,0.01648606]
[1644942199529,21.1216575,3123.3,3123.0,0.01648606]
[1644942199731,18.72,3123.2,3122.2,1.54747069]
[1644942200026,0.8005718,3122.9,3122.2,2.34806069]
[1644942200224,0.8005718,3122.9,3122.2,1.54747069]
[1644942200430,1.08239643,3122.8,3122.2,1.54747069]
[1644942200725,1.08239643,3122.8,3122.2,1.84747069]
[1644942200926,1.08239643,3122.8,3122.4,0.00259822]
[1644942201330,1.08239643,3122.8,3122.4,0.80312822]
[1644942201725,1.08239643,3122.8,3122.5,0.3]
[1644942201975,1.08239643,3122.8,3122.5,0.31349256]
[1644942202577,1.08239643,3122.8,3122.5,1.91451256]
[1644942202978,1.08239643,3122.8,3122.5,1.11400256]
[1644942203380,23.05833,3123.4,3122.5,1.73146928]
[1644942203381,3.5378,3123.4,3122.5,1.73146928]
[1644942203580,3.5378,3123.4,3122.7,0.80045]
[1644942203878,3.5378,3123.4,3122.7,0.31349256]
[1644942204278,3.5378,3123.4,3122.7,0.01349256]
[1644942204477,3.5378,3123.4,3122.7,1.61414256]
[1644942204682,3.5378,3123.4,3122.9,0.80308789]
[1644942204880,3.5378,3123.4,3123.0,0.80038]
[1644942205281,1.1387,3123.9,3123.0,0.3]
[1644942205726,1.10847796,3123.5,3123.3,0.3]
[1644942205932,18.72,3123.4,3123.0,0.01606994]
[1644942206131,18.72,3123.2,3123.0,0.01606994]
[1644942206526,0.384,3123.3,3123.0,0.01606994]
[1644942206727,0.8006237,3123.2,3123.0,0.01349256]
[1644942206929,4.4211237,3123.2,3123.0,0.01349256]
[1644942209127,3.40642589,3123.1,3123.0,0.01349256]
[1644942209978,5.5217037,3123.2,3123.0,0.01349256]
[1644942210375,8.11979647,3123.2,3123.0,0.01349256]
[1644942210576,4.7211237,3123.2,3123.0,0.01349256]
[1644942210874,3.40447598,3123.1,3123.0,0.01349256]
[1644942211076,22.12447598,3123.1,3123.0,0.01349256]
[1644942212581,3.40447598,3123.1,3123.0,0.01349256]
[1644942212776,22.12447598,3123.1,3123.0,0.01349256]
[1644942215628,18.72,3123.1,3123.0,0.01349256]
[1644942216834,18.75304004,3122.8,3122.4,0.01740152]
[1644942217103,18.72,3122.6,3122.4,0.01740152]
[1644942217695,1.10710914,3122.5,3122.4,0.01740152]
[1644942218697,19.82710914,3122.5,3122.4,0.01740152]
[1644942219105,19.82710914,3122.5,3122.4,0.02698512]
[1644942220402,20.21110914,3122.5,3122.4,0.02698512]
[1644942222526,58.25639415,3122.5,3122.4,0.02698512]
[1644942224028,59.55639415,3122.5,3122.4,0.02698512]
[1644942224678,18.72,3122.3,3121.9,0.04202964]
[1644942224875,1.17357694,3122.0,3121.9,0.04202964]
[1644942225076,4.69080023,3122.0,3121.9,0.04202964]
[1644942225680,23.41080023,3122.0,3121.9,0.04202964]
[1644942225877,4.69080023,3122.0,3121.9,0.04202964]
[1644942226478,1.17357694,3122.0,3121.9,0.04202964]
[1644942227281,4.66422925,3122.0,3121.9,0.04202964]
[1644942227580,5.04822925,3122.0,3121.9,0.04202964]
[1644942228236,23.68580134,3122.0,3121.9,0.04202964]
[1644942228831,23.68580134,3122.0,3121.7,2.3415633]
[1644942229029,18.72,3121.8,3121.7,2.3415633]
[1644942229229,19.104,3121.8,3121.7,2.3415633]
[1644942229630,19.104,3121.8,3121.7,2.0415633]
[1644942230031,20.404,3121.8,3121.7,2.0415633]
[1644942231530,0.384,3121.8,3121.7,2.0415633]
[1644942231975,0.384,3121.8,3121.7,2.04613057]
[1644942232182,3.83751304,3121.8,3121.7,2.04613057]
[1644942232579,22.55751304,3121.8,3121.7,2.04613057]
[1644942232776,19.404,3121.8,3121.7,2.04613057]
[1644942233677,20.20494,3121.8,3121.7,2.04613057]
[1644942234176,21.20494,3121.8,3121.7,2.04613057]
[1644942234979,25.52,3121.7,3121.6,0.0090633]
[1644942235179,20.5210583,3121.7,3121.6,0.0090633]
[1644942235379,20.9050583,3121.7,3121.6,0.0090633]
[1644942235581,0.8010583,3121.7,3121.6,0.00634126]
[1644942235835,4.63847694,3122.0,3121.6,0.00634126]
[1644942236326,0.80082,3121.9,3121.6,0.00634126]
[1644942236526,1.601649,3121.9,3121.6,0.00634126]
[1644942236725,0.800829,3121.9,3121.6,0.00634126]
[1644942237126,0.800829,3121.9,3121.6,0.80988607]
[1644942237426,0.80081,3121.8,3121.6,0.80988607]
[1644942237629,3.4649,3122.0,3121.7,1.10071]
[1644942238227,3.4649,3122.0,3121.7,1.90413474]
[1644942238633,1.10336912,3121.9,3121.7,1.90413474]
[1644942239027,1.10336912,3121.9,3121.7,1.10342474]
[1644942239228,1.10336912,3121.9,3121.6,0.00634126]
[1644942239502,1.10336912,3121.9,3121.6,0.00906603]
[1644942240001,2.70494652,3121.9,3121.6,0.00906603]
[1644942240203,1.90417652,3121.9,3121.6,0.00906603]
[1644942240402,1.90417652,3121.9,3121.6,0.80721126]
[1644942240606,21.62417652,3121.9,3121.6,0.00906607]
[1644942240804,18.72,3121.7,3121.6,0.00906607]
[1644942241002,19.104,3121.7,3121.6,0.00906607]
[1644942241205,20.104,3121.7,3121.6,0.00906607]
[1644942241603,20.9050819,3121.7,3121.6,0.00634126]
[1644942243227,19.50837748,3121.5,3121.3,0.01356164]
[1644942243427,19.50837748,3121.5,3121.3,0.0176]
[1644942243428,19.58336278,3121.4,3121.3,0.0176]
[1644942243629,19.58336278,3121.4,3121.0,0.01090112]
[1644942243630,18.70731748,3121.2,3121.0,0.01090112]
[1644942243835,18.70731748,3121.2,3121.0,0.01897784]
[1644942244029,19.09131748,3121.1,3121.0,0.00807672]
[1644942244233,18.70731748,3120.8,3120.2,0.00823632]
[1644942244430,18.70731748,3120.6,3120.5,0.01978066]
[1644942244631,25.50731748,3120.5,3120.2,0.00725444]
[1644942244832,18.70731748,3120.5,3120.2,0.02372708]
[1644942245229,0.80135,3120.4,3120.2,0.02372708]
[1644942245432,2.4039853,3120.4,3120.2,0.02573212]
[1644942245631,2.7039853,3120.4,3120.2,0.02573212]
[1644942246030,2.4039853,3120.4,3120.2,0.02573212]
[1644942246432,2.4039853,3120.4,3120.2,0.02372708]
[1644942247786,21.1239853,3120.4,3120.2,0.02372708]
[1644942248686,2.4039853,3120.4,3120.2,0.02372708]
[1644942249387,21.1239853,3120.4,3120.2,0.02372708]
[1644942249588,21.5079853,3120.4,3120.2,0.02372708]
[1644942249789,2.7879853,3120.4,3120.2,0.02372708]
[1644942250932,21.5079853,3120.4,3120.2,0.02372708]
[1644942252234,2.7879853,3120.4,3120.2,0.02372708]
[1644942252636,3.0879853,3120.4,3120.2,0.02372708]
[1644942252838,3.0879853,3120.4,3120.2,0.01453596]
[1644942253036,19.72,3120.3,3120.2,0.01453596]
[1644942253235,18.72,3120.1,3119.7,0.01090459]
[1644942253436,18.72,3119.9,3119.7,0.01090459]
[1644942253636,18.72,3119.9,3119.5,0.0052352]
[1644942254036,1.10121159,3119.7,3119.6,0.04048726]
[1644942254242,19.52145,3119.9,3119.6,0.04048726]
[1644942254477,0.80145,3119.8,3119.6,0.04048726]
[1644942254677,3.205752,3119.8,3119.6,0.04048726]
[1644942255480,1.14719659,3119.7,3119.6,0.04048726]
[1644942256480,19.86719659,3119.7,3119.6,0.04048726]
[1644942256681,19.86719659,3119.7,3119.5,0.00978182]
[1644942256886,0.80152,3119.6,3119.5,0.00978182]
[1644942257080,19.52152,3119.6,3119.5,0.00978182]
[1644942257280,0.80152,3119.6,3119.5,0.00978182]
[1644942258735,19.52152,3119.6,3119.5,0.00978182]
[1644942259639,19.82152,3119.6,3119.5,0.00978182]
[1644942259836,19.52171,3119.4,3119.2,0.0104704]
[1644942260037,18.72,3119.3,3119.2,0.0104704]
[1644942260436,1.90341,3119.4,3118.9,0.01090651]
[1644942260437,19.64456934,3119.0,3118.9,0.01090651]
[1644942260836,19.64456934,3119.0,3118.8,0.00317606]
[1644942261036,19.64456934,3119.0,3118.8,0.005191]
[1644942261037,20.44624934,3119.0,3118.8,0.005191]
[1644942261236,18.72,3118.9,3118.8,0.005191]
[1644942262082,18.72,3118.9,3118.8,0.00317606]
[1644942263084,19.02,3118.9,3118.8,0.00317606]
[1644942263684,19.02,3118.9,3118.8,0.00635212]
[1644942263685,20.62373,3118.9,3118.8,0.00635212]
[1644942263884,21.62373,3118.9,3118.8,0.00635212]
[1644942264083,21.62373,3118.9,3118.7,0.01270424]
[1644942264287,20.5218288,3118.8,3118.7,0.01270424]
[1644942265285,22.1254688,3118.8,3118.7,0.01270424]
[1644942265484,22.5094688,3118.8,3118.7,0.01270424]
[1644942273731,22.8094688,3118.8,3118.7,0.01270424]
[1644942273929,18.72,3118.6,3118.5,0.0046479]
[1644942274129,20.70763,3118.6,3118.5,0.0046479]
[1644942274329,21.20579,3118.6,3118.5,0.00736662]
[1644942275331,21.20579,3118.6,3118.5,0.0046479]
[1644942275934,25.52,3118.5,3118.4,0.0027188]
[1644942276133,20.104,3118.5,3118.4,0.0120146]
[1644942276533,20.104,3118.5,3118.4,0.0092958]
[1644942276733,21.15153789,3118.5,3118.4,0.0092958]
[1644942277481,21.15153789,3118.5,3118.4,9.58e-05]
[1644942278080,21.15153789,3118.5,3118.4,9.16e-05]
[1644942278280,23.55753519,3118.5,3118.4,9.16e-05]
[1644942278479,18.72,3118.4,3117.8,0.0176308]
[1644942278679,18.72,3118.2,3117.8,0.0176308]
[1644942278878,18.72,3118.0,3117.8,0.0067537]
[1644942279079,20.03824438,3117.9,3117.8,0.0067537]
[1644942279284,20.33824438,3117.9,3117.8,0.0067537]
[1644942279482,21.33824438,3117.9,3117.8,0.0067537]
[1644942279882,18.72,3117.5,3117.4,0.0135074]
[1644942280083,19.104,3117.5,3117.4,0.0135074]
[1644942280483,20.404,3117.5,3117.4,0.0135074]
[1644942282636,1.684,3117.5,3117.4,0.0135074]
[1644942282938,20.404,3117.5,3117.4,0.0135074]
[1644942283134,21.20607,3117.5,3117.4,0.0135074]
[1644942283533,71.34994949,3117.5,3117.4,0.0135074]
[1644942288345,50.14387949,3117.5,3117.4,0.0135074]
[1644942288646,1.604551,3117.6,3117.4,0.0135074]
[1644942288842,1.604551,3117.6,3117.4,0.0145074]
[1644942289042,1.604551,3117.6,3117.4,0.0135074]
[1644942289445,2.406581,3117.6,3117.4,0.0135074]
[1644942290044,0.802291,3117.6,3117.4,0.0135074]
[1644942290243,3.3493,3117.8,3117.4,0.0135074]
[1644942290244,0.8018535,3117.8,3117.4,0.0135074]
[1644942290445,2.53800428,3117.9,3117.4,0.0145074]
[1644942290446,0.93424438,3117.9,3117.4,0.0145074]
[1644942290943,3.4902,3118.9,3117.4,0.0145074]
[1644942291142,3.4902,3118.9,3117.5,0.00271937]
[1644942291346,0.8017729,3118.1,3117.5,0.00271937]
[1644942291841,0.8017729,3118.1,3117.5,0.01622677]
[1644942292084,1.13016075,3118.0,3117.5,0.8152874]
[1644942292286,3.4184369,3117.9,3117.6,0.00271928]
[1644942292488,19.72,3117.8,3117.6,0.00271928]
[1644942292686,19.72,3117.8,3117.6,0.01622668]
[1644942292687,22.25440547,3117.7,3117.6,0.01622668]
[1644942292884,0.3,3117.7,3117.6,0.01622668]
[1644942293191,4.14296704,3117.9,3117.6,0.01622668]
[1644942293487,18.72,3117.7,3117.6,0.0135074]
[1644942293885,20.32,3117.7,3117.6,0.0135074]
[1644942294283,20.704,3117.7,3117.6,0.0135074]
[1644942294685,20.704,3117.7,3117.0,0.01087913]
[1644942294686,0.02806833,3117.5,3117.0,0.01087913]
[1644942294887,18.72,3117.4,3117.0,0.01087913]
[1644942295086,18.72,3117.2,3117.0,7.913e-05]
[1644942295290,18.72,3117.2,3116.1,0.00546045]
[1644942295291,25.52,3117.0,3116.1,0.00546045]
[1644942295491,25.52,3117.0,3115.5,0.001]
[1644942295492,25.52,3116.8,3115.5,0.001]
[1644942295748,5.0,3115.9,3114.3,0.8014]
[1644942295944,5.0,3115.9,3114.8,4.33069853]
[1644942295945,18.72,3115.6,3114.8,4.33069853]
[1644942296143,18.72,3115.6,3114.4,0.01176668]
[1644942296144,18.72,3115.4,3114.4,0.04837568]
[1644942296344,1.1867052,3115.5,3114.4,0.06543928]
[1644942296345,18.72,3115.3,3114.4,0.06543928]
[1644942296544,17.3,3115.3,3114.4,0.06543928]
[1644942296743,0.87517756,3114.9,3114.4,0.06543928]
[1644942298448,0.87517756,3114.9,3114.5,0.00196232]
[1644942298644,3.4344,3115.5,3114.5,0.00196232]
[1644942298846,3.4344,3115.5,3114.5,0.0674016]
[1644942299045,3.7344,3115.5,3114.5,0.0674016]
[1644942299346,3.7344,3115.5,3114.5,0.06543928]
[1644942299582,0.8025201,3115.4,3114.8,0.00270348]
[1644942299783,0.8025201,3115.4,3114.8,0.05107916]
[1644942299784,1.05298615,3115.3,3114.8,0.05107916]
[1644942299982,1.35298615,3115.3,3114.8,0.05107916]
[1644942300383,1.35298615,3115.3,3114.8,0.04837568]
[1644942300781,1.35298615,3115.3,3114.9,0.00270345]
[1644942301791,20.07298615,3115.3,3114.9,0.04837568]
[1644942301987,18.72,3115.2,3114.9,0.0510791]
[1644942302184,20.02,3115.2,3114.9,0.0510791]
[1644942302384,0.3,3115.2,3114.9,0.0510791]
[1644942302784,0.3,3115.2,3114.9,0.04837568]
[1644942303240,0.3,3115.2,3114.6,0.0170636]
[1644942303241,7.1,3115.2,3114.6,0.0170636]
[1644942303444,6.8,3114.9,3114.4,0.01566448]
[1644942303648,18.72,3114.8,3114.4,0.01566448]
[1644942303843,1.0,3114.8,3114.4,0.01566448]
[1644942304046,0.384,3114.7,3114.4,0.01566448]
[1644942304243,2.53619381,3114.7,3114.4,0.01566448]
[1644942304449,29.02,3114.6,3112.9,1.19592906]
[1644942304650,29.02,3114.6,3112.6,0.00617078]
[1644942304651,0.01229556,3114.1,3112.6,0.00617078]
[1644942304846,18.72,3113.9,3112.6,0.00617078]
[1644942305044,0.384,3113.8,3112.6,0.00617078]
[1644942305245,0.684,3113.8,3112.6,0.00617078]
[1644942305446,0.9889225,3112.8,3112.6,0.00617078]
[1644942305647,0.8029609,3113.4,3112.6,0.00617078]
[1644942306150,1.1029609,3113.4,3112.6,0.80914078]
[1644942306344,1.1029609,3113.4,3112.6,0.00617078]
[1644942306547,1.1029609,3113.4,3113.2,0.96340546]
[1644942306548,0.76724965,3113.4,3113.2,0.96340546]
[1644942306750,23.8598,3114.3,3113.2,0.96340546]
[1644942306751,0.384,3114.7,3113.3,5.0]
[1644942306998,11.8601511,3115.4,3113.3,5.0]
[1644942306999,3.4747,3115.2,3113.7,5.0]
[1644942307199,4.557,3115.7,3114.1,1.07141]
[1644942307200,0.5,3115.7,3114.1,1.07141]
[1644942307397,0.384,3116.2,3114.2,4.1]
[1644942307595,9.3982,3116.7,3114.7,0.9439822]
[1644942307799,2.78e-05,3116.6,3115.5,3.87488387]
[1644942307996,2.78e-05,3116.6,3116.0,3.87488387]
[1644942308495,2.78e-05,3116.6,3116.1,1.0]
[1644942308895,2.78e-05,3116.6,3115.9,0.3]
[1644942309094,2.78e-05,3116.6,3115.6,4.74333515]
[1644942309095,2.78e-05,3116.6,3115.6,2.54333515]
[1644942309294,0.00253201,3116.5,3115.9,0.80209]
[1644942309696,0.00253201,3116.5,3116.0,0.3]
[1644942309895,0.00253201,3116.5,3116.0,0.301]
[1644942310195,2.78e-05,3116.6,3116.4,0.97782135]
[1644942310397,2.78e-05,3116.6,3115.8,1.0]
[1644942310398,0.00253201,3116.4,3116.1,0.001]
[1644942310595,0.00253201,3116.4,3115.4,0.001]
[1644942310842,1.12511613,3116.1,3115.1,0.001]
[1644942311038,1.12511613,3116.0,3115.4,0.00441784]
[1644942311240,19.02,3116.1,3115.0,0.00441784]
[1644942311457,1.00622774,3115.8,3114.9,0.001]
[1644942311737,1.00622774,3115.8,3114.8,0.00541784]
[1644942311738,1.30875975,3115.8,3114.8,0.00541784]
[1644942311935,1.12511613,3115.1,3114.2,0.00711827]
[1644942312135,1.30875975,3115.8,3114.2,0.00811827]
[1644942312136,1.12511613,3115.0,3114.2,0.00811827]
[1644942312338,0.3,3115.1,3114.2,0.00711827]
[1644942312533,0.3,3115.1,3114.2,0.00441784]
[1644942312534,1.12535508,3114.9,3114.2,0.00441784]
[1644942312736,1.12535508,3114.9,3114.2,0.00541784]
[1644942312737,1.42535508,3114.9,3114.2,0.00541784]
[1644942312936,1.42535508,3114.9,3114.2,0.00808022]
[1644942313134,1.12511613,3114.8,3114.2,0.00266238]
[1644942313337,1.12511613,3114.5,3114.2,0.00266238]
[1644942313534,19.72,3114.8,3114.2,0.00266238]
[1644942313738,19.72,3114.8,3113.7,0.00441784]
[1644942313739,1.42535508,3114.9,3113.7,0.00441784]
[1644942313939,1.42535508,3114.9,3114.2,0.00266236]
[1644942313940,0.3,3114.9,3114.2,0.00266236]
[1644942314492,1.12511613,3114.8,3114.2,0.00266236]
[1644942314694,1.42511613,3114.8,3114.2,0.00266236]
[1644942314896,1.14212304,3114.7,3113.9,1.00114135]
[1644942315093,1.14212304,3114.7,3114.0,0.00541784]
[1644942315494,1.14212304,3114.7,3114.2,0.0025725]
[1644942315695,0.3,3114.8,3114.2,0.0025725]
[1644942315898,3.6333,3114.9,3114.2,0.0025725]
[1644942316095,3.6333,3114.9,3114.1,0.25541784]
[1644942316296,3.6333,3114.9,3114.2,0.00441784]
[1644942316499,3.6333,3114.9,3114.2,0.00702815]
[1644942316696,1.35408661,3114.9,3114.2,0.00702815]
[1644942316894,1.05408661,3114.9,3114.2,0.00702815]
[1644942317096,1.35408661,3114.9,3114.2,0.00702815]
[1644942317294,1.35408661,3114.9,3114.2,0.00441784]
[1644942317497,1.35408661,3114.9,3114.2,0.00541784]
[1644942317498,0.3,3114.9,3114.2,0.00541784]
[1644942317695,5.75341613,3115.5,3114.2,1.00541784]
[1644942317895,5.75341613,3115.5,3114.3,0.00541784]
[1644942318095,6.05341613,3115.5,3114.3,0.00541784]
[1644942318334,1.12511613,3115.3,3114.3,0.00541784]
[1644942318539,0.99935109,3115.0,3114.3,0.00441784]
[1644942318734,3.81628658,3114.9,3114.3,0.00441784]
[1644942318938,3.81628658,3114.9,3113.6,0.001]
[1644942318939,1.12511613,3114.4,3114.2,0.00244852]
[1644942319138,3.55878552,3114.3,3114.2,0.00244852]
[1644942319334,0.3,3114.4,3114.2,0.00244852]
[1644942319834,0.3,3114.5,3113.4,1.01721845]
[1644942320035,0.3,3114.7,3114.1,0.0023618]
[1644942320234,1.42511613,3114.8,3114.1,0.0023618]
[1644942320437,20.14511613,3114.8,3114.1,0.0023618]
[1644942320639,19.02,3114.8,3114.1,0.0023618]
[1644942320834,0.87255168,3114.4,3114.1,0.0023618]
[1644942321035,0.87255168,3114.4,3113.5,0.01486711]
[1644942321036,0.87255168,3114.4,3113.6,0.80269]
[1644942321234,0.87255168,3114.4,3113.7,0.30441784]
[1644942321436,1.17255168,3114.4,3114.2,0.00236176]
[1644942322081,1.17255168,3114.4,3113.8,0.00441784]
[1644942322282,0.87255168,3114.4,3113.8,0.00441784]
[1644942322485,0.87255168,3114.4,3114.1,0.00235687]
[1644942322486,1.17255168,3114.4,3114.1,0.00235687]
[1644942322784,1.12511613,3114.7,3114.1,0.00235687]
[1644942322984,1.42511613,3114.7,3114.1,0.00235687]
[1644942323182,23.65946961,3114.7,3114.1,0.00235687]
[1644942323388,18.72,3114.5,3113.8,0.00441784]
[1644942323584,1.42511613,3114.7,3113.8,0.00441784]
[1644942323783,0.3,3114.7,3113.8,0.00441784]
[1644942323984,1.12511613,3114.5,3113.8,0.00441784]
[1644942324384,5.7151163,3114.9,3113.8,0.00441784]
[1644942324385,0.3,3114.9,3113.8,0.00441784]
[1644942324585,0.90413152,3114.4,3113.8,0.00441784]
[1644942324988,0.90413152,3114.4,3113.6,1.76076784]
[1644942325186,0.90413152,3114.4,3113.7,0.80372]
[1644942325383,0.90413152,3114.4,3113.7,1.10372]
[1644942325586,0.90413152,3114.4,3113.8,0.001]
[1644942325587,19.92413152,3114.4,3113.8,0.001]
[1644942325841,0.91720618,3113.8,3113.2,0.001]
[1644942326034,4.65341613,3114.3,3113.9,0.0026857]
[1644942326634,1.12511613,3114.0,3113.9,0.0026857]
[1644942326837,0.3,3114.0,3113.9,0.0026857]
[1644942327133,1.12511613,3114.1,3113.8,0.00268576]
[1644942327836,22.2483,3114.3,3113.8,0.00268576]
[1644942327837,3.49724669,3114.0,3113.8,0.00268576]
[1644942328039,4.5981011,3114.0,3113.8,0.00268576]
[1644942328234,4.5981011,3114.0,3113.3,0.80382]
[1644942328435,3.5283,3114.3,3113.3,0.80382]
[1644942328436,3.5283,3114.3,3113.7,0.00268579]
[1644942328636,3.5283,3114.3,3113.8,0.80271]
[1644942328836,3.5283,3114.3,3113.9,0.3]
[1644942329035,3.5283,3114.3,3113.9,0.301]
[1644942329234,3.5283,3114.3,3113.7,0.00268579]
[1644942329235,3.8283,3114.3,3113.7,0.00268579]
[1644942329485,1.04898611,3114.2,3113.3,0.251]
[1644942329683,1.04898611,3114.2,3113.4,1.60555]
[1644942329983,3.53586749,3114.7,3113.6,0.8028]
[1644942330184,7.14626749,3114.7,3113.7,0.3]
[1644942330386,7.14626749,3114.7,3113.7,0.301]
[1644942330582,8.27138362,3114.7,3113.7,0.301]
[1644942330783,1.42511613,3114.5,3114.0,0.00268931]
[1644942331182,1.40623271,3114.5,3114.0,0.00268931]
[1644942331784,1.40623271,3114.5,3113.9,0.301]
[1644942331989,1.40623271,3114.5,3114.1,0.00268928]
[1644942332589,2.53134884,3114.5,3114.1,0.00268928]
[1644942332789,2.53134884,3114.5,3114.1,0.80539928]
[1644942332790,0.3,3114.5,3114.1,0.80539928]
[1644942332988,0.3,3114.5,3114.1,0.80271]
[1644942333234,4.73551613,3114.7,3114.1,1.10539925]
[1644942333434,4.73551613,3114.7,3114.2,0.001]
[1644942333639,4.73551613,3114.7,3114.1,0.30268925]
[1644942333837,0.91948716,3114.5,3114.1,0.00268925]
[1644942334037,2.02228366,3114.5,3114.1,0.00268925]
[1644942334235,2.02228366,3114.5,3113.8,0.001]
[1644942334236,1.21948716,3114.5,3113.8,0.001]
[1644942334435,1.21948716,3114.5,3114.1,0.00268925]
[1644942334837,1.12511613,3114.7,3114.1,3.02374543]
[1644942335039,1.12511613,3114.7,3114.2,0.001]
[1644942335237,1.42511613,3114.7,3114.2,0.001]
[1644942335636,0.3,3114.7,3114.2,0.0036892]
[1644942335841,3.6053,3115.2,3114.3,0.80262]
[1644942335842,0.96774826,3115.1,3114.3,0.80262]
[1644942336039,0.96774826,3115.1,3114.3,0.80362]
[1644942336040,1.26774826,3115.1,3114.3,0.80362]
[1644942336237,1.26774826,3115.1,3114.4,0.3]
[1644942336437,2.07038136,3115.1,3114.4,0.3]
[1644942336639,2.07038136,3115.1,3114.3,0.80355]
[1644942336640,1.26774826,3115.1,3114.3,0.80355]
[1644942336837,1.26774826,3115.1,3114.3,1.10355]
[1644942337085,1.26774826,3115.1,3114.4,0.001]
[1644942337290,1.26774826,3115.1,3114.4,1.01705495]
[1644942337491,0.3,3115.1,3114.5,0.001]
[1644942337888,3.9053,3115.2,3114.5,0.001]